bitfinex-derivatives/quotes_BTCF0:USTF0_20250411
["timestamp","ask_amount","ask_price","bid_price","bid_amount"]
[1744394433241,0.1192497,83926.0,83925.0,3e-08]
[1744394433737,0.1192497,83926.0,83925.0,0.10760003]
[1744394434136,0.2254497,83926.0,83925.0,0.10760003]
[1744394434335,0.2254497,83926.0,83925.0,0.21250003]
[1744394434541,0.2254497,83926.0,83925.0,0.10760003]
[1744394434844,0.2254497,83926.0,83925.0,3e-08]
[1744394435638,0.2254497,83926.0,83925.0,0.11921123]
[1744394435639,4e-05,83926.0,83925.0,0.11921123]
[1744394435828,0.1242597,83934.0,83931.0,0.0596006]
[1744394436028,0.1191998,83933.0,83932.0,0.1049]
[1744394436233,0.3260998,83933.0,83932.0,0.1049]
[1744394436633,0.3260998,83933.0,83925.0,0.05960523]
[1744394436634,0.1192097,83926.0,83925.0,3e-08]
[1744394436840,0.1192097,83926.0,83925.0,0.11921123]
[1744394437034,0.1192097,83926.0,83925.0,3e-08]
[1744394438138,0.1192097,83926.0,83925.0,0.11921123]
[1744394438539,0.1192497,83926.0,83925.0,0.11921123]
[1744394440945,4e-05,83926.0,83925.0,0.11921123]
[1744394441152,0.1192497,83926.0,83925.0,0.11921123]
[1744394441347,0.1192497,83926.0,83925.0,3e-08]
[1744394441348,0.4800097,83926.0,83925.0,3e-08]
[1744394441646,0.1192497,83926.0,83925.0,3e-08]
[1744394442046,0.4392497,83926.0,83925.0,3e-08]
[1744394442246,0.8000497,83926.0,83925.0,3e-08]
[1744394444154,0.93084,83926.0,83903.0,0.3608]
[1744394444353,0.93084,83926.0,83890.0,0.26810145]
[1744394444354,0.1192467,83900.0,83890.0,0.20847145]
[1744394444543,0.1192595,83891.0,83890.0,0.20847145]
[1744394445350,0.12817698,83891.0,83890.0,0.20847145]
[1744394445555,0.34247698,83891.0,83890.0,0.20847145]
[1744394446347,0.34251698,83891.0,83890.0,0.20847145]
[1744394446741,0.12821698,83891.0,83890.0,0.32773235]
[1744394447150,0.00895748,83891.0,83890.0,0.68853235]
[1744394447354,0.00891748,83891.0,83890.0,0.68853235]
[1744394447553,0.1192995,83891.0,83890.0,0.4800609]
[1744394447750,0.1192995,83891.0,83890.0,0.3275609]
[1744394448156,0.1192995,83891.0,83890.0,0.2083]
[1744394448351,0.12808817,83891.0,83890.0,0.1085]
[1744394448752,0.1192694,83884.0,83883.0,0.106]
[1744394448952,0.0596345,83885.0,83884.0,0.1007]
[1744394449258,0.1192708,83883.0,83871.0,0.3608]
[1744394449460,0.1192822,83875.0,83874.0,0.1007]
[1744394449849,0.1192836,83874.0,83871.0,0.3608]
[1744394450049,0.2179836,83874.0,83871.0,0.3608]
[1744394450251,0.10052,83875.0,83874.0,0.1192836]
[1744394450551,0.00017879,83883.0,83875.0,0.0596409]
[1744394450748,0.10052,83913.0,83882.0,0.3608]
[1744394450943,5.401e-05,83905.0,83897.0,0.1192509]
[1744394451348,0.06875524,83907.0,83897.0,0.3692509]
[1744394451552,0.17735763,83898.0,83897.0,0.1192509]
[1744394451852,0.00017879,83906.0,83903.0,0.1192424]
[1744394452049,0.005,83914.0,83913.0,0.1192282]
[1744394452248,0.005,83914.0,83913.0,0.4800282]
[1744394452855,0.005,83914.0,83913.0,0.6888282]
[1744394452856,0.1242268,83914.0,83913.0,0.6888282]
[1744394453046,0.1242668,83914.0,83913.0,0.6888282]
[1744394453249,0.1242268,83914.0,83913.0,0.6888282]
[1744394453450,0.1242668,83914.0,83913.0,0.6888282]
[1744394453852,0.1242668,83914.0,83913.0,0.5696]
[1744394454162,0.1242668,83914.0,83913.0,0.3280282]
[1744394454660,0.1242668,83914.0,83913.0,0.2203282]
[1744394454960,0.00504,83914.0,83913.0,0.2203282]
[1744394455259,0.005,83914.0,83913.0,0.4703282]
[1744394455456,0.00504,83914.0,83913.0,0.4703282]
[1744394455651,0.00017879,83922.0,83921.0,0.1192168]
[1744394455851,0.00017879,83922.0,83921.0,0.4800168]
[1744394456058,0.00021879,83922.0,83921.0,0.4800168]
[1744394456555,0.00021879,83922.0,83921.0,0.6871168]
[1744394457958,0.11943419,83922.0,83921.0,0.1059]
[1744394458257,0.48023419,83922.0,83921.0,0.1059]
[1744394458557,0.1192268,83914.0,83906.0,0.3608]
[1744394458757,0.1192268,83914.0,83907.0,0.108]
[1744394458958,0.1192268,83914.0,83913.0,0.11940699]
[1744394459356,0.1192268,83914.0,83913.0,0.48020699]
[1744394459659,0.0596123,83916.0,83915.0,0.1192254]
[1744394460063,0.00017879,83922.0,83921.0,0.1192168]
[1744394460266,0.00017879,83922.0,83921.0,0.4800168]
[1744394460556,0.00021879,83922.0,83921.0,0.5791168]
[1744394460756,0.00017879,83922.0,83921.0,0.5791168]
[1744394460958,0.1024,83941.0,83936.0,0.2383851]
[1744394461158,0.0595963,83939.0,83936.0,0.1787912]
[1744394461360,0.1191891,83941.0,83939.0,0.1191913]
[1744394461661,9.842e-05,83941.0,83939.0,0.4799913]
[1744394461875,0.0595887,83949.0,83939.0,0.4799913]
[1744394461876,0.1241898,83940.0,83939.0,0.4799913]
[1744394462164,0.1192012,83932.0,83931.0,0.00017879]
[1744394462461,0.1788259,83923.0,83922.0,0.1192106]
[1744394462656,0.1192168,83921.0,83920.0,0.3608]
[1744394463259,0.2216168,83921.0,83920.0,0.3608]
[1744394464259,0.1192282,83913.0,83912.0,0.11940439]
[1744394464458,0.1192282,83913.0,83912.0,0.48020439]
[1744394464660,0.0596098,83920.0,83913.0,0.0596141]
[1744394464861,5.401e-05,83924.0,83922.0,0.0596074]
[1744394465060,0.11926661,83924.0,83923.0,0.589214]
[1744394465250,0.1192126,83924.0,83923.0,0.589214]
[1744394465455,0.1192526,83924.0,83923.0,0.47]
[1744394465653,0.1192526,83924.0,83923.0,0.3608]
[1744394466164,0.1192282,83913.0,83909.0,0.2284333]
[1744394466463,0.1192282,83913.0,83910.0,0.1192313]
[1744394466654,0.1192282,83913.0,83911.0,0.1192307]
[1744394466856,0.1192282,83913.0,83911.0,0.1192302]
[1744394467056,0.1192282,83913.0,83909.0,0.1688168]
[1744394467258,0.1192282,83913.0,83903.0,0.56927145]
[1744394467459,0.1192282,83913.0,83912.0,0.11940839]
[1744394468059,0.1192282,83913.0,83912.0,0.00017879]
[1744394468265,0.1192282,83913.0,83912.0,0.11940839]
[1744394468655,0.1192282,83913.0,83912.0,0.48020839]
[1744394468857,0.1085,83927.0,83922.0,0.059607]
[1744394469170,0.2197325,83925.0,83924.0,0.4800126]
[1744394469560,0.2197725,83925.0,83924.0,0.4800126]
[1744394469769,0.2197325,83925.0,83924.0,0.4800126]
[1744394470163,0.2197725,83925.0,83924.0,0.4800126]
[1744394471164,0.2197725,83925.0,83924.0,0.3608]
[1744394471359,0.1192282,83913.0,83901.0,0.3608]
[1744394471868,0.3277282,83913.0,83906.0,0.1192374]
[1744394472166,0.3277282,83913.0,83907.0,0.1192362]
[1744394472468,0.3277282,83913.0,83908.0,0.1192351]
[1744394472666,0.3277282,83913.0,83904.0,0.105]
[1744394472859,0.3277282,83913.0,83912.0,0.48020839]
[1744394473057,0.3277282,83913.0,83912.0,0.36097879]
[1744394474365,0.3277282,83913.0,83912.0,0.00017879]
[1744394475659,0.3277282,83913.0,83912.0,9e-08]
[1744394475660,0.5777282,83913.0,83912.0,9e-08]
[1744394475861,0.1192467,83900.0,83899.0,0.00476761]
[1744394476064,0.2196867,83900.0,83899.0,0.00476761]
[1744394476876,0.4329867,83900.0,83899.0,0.00476761]
[1744394477667,0.2196867,83900.0,83899.0,0.48481571]
[1744394477870,0.2197267,83900.0,83899.0,0.48481571]
[1744394478377,0.2197267,83900.0,83899.0,0.69081571]
[1744394478572,0.2197267,83900.0,83899.0,0.57156761]
[1744394479774,0.3204267,83900.0,83899.0,0.57156761]
[1744394479970,0.3204267,83900.0,83899.0,0.46426761]
[1744394480172,0.5299267,83900.0,83899.0,0.36556761]
[1744394480372,0.119258,83892.0,83891.0,0.00017879]
[1744394480677,0.480058,83892.0,83891.0,0.00017879]
[1744394480875,0.684158,83892.0,83891.0,0.00017879]
[1744394482671,0.323358,83892.0,83891.0,0.00017879]
[1744394482873,0.119258,83892.0,83891.0,0.00017879]
[1744394483262,0.0596278,83894.0,83893.0,0.1788835]
[1744394483464,0.0596159,83911.0,83891.0,0.05980809]
[1744394483465,5.401e-05,83904.0,83898.0,0.0596243]
[1744394483769,0.11929501,83904.0,83903.0,0.3608]
[1744394484376,0.119241,83904.0,83903.0,0.3608]
[1744394484574,0.119281,83904.0,83903.0,0.3608]
[1744394484774,0.119281,83904.0,83903.0,0.4800424]
[1744394484968,0.119281,83904.0,83903.0,0.3608]
[1744394485175,0.322181,83904.0,83903.0,0.3608]
[1744394486073,0.119258,83892.0,83891.0,0.00017879]
[1744394486281,0.0596273,83895.0,83894.0,0.1192552]
[1744394486577,0.0596273,83895.0,83894.0,0.2183552]
[1744394486765,0.1192522,83899.0,83898.0,0.1192467]
[1744394486965,0.1192522,83899.0,83898.0,0.3171467]
[1744394487365,0.1788768,83899.0,83898.0,0.3171467]
[1744394487578,0.1788768,83899.0,83898.0,0.0991]
[1744394488074,0.119258,83892.0,83891.0,0.00017879]
[1744394488475,0.320258,83892.0,83891.0,0.00017879]
[1744394488677,0.420738,83892.0,83891.0,0.00017879]
[1744394488880,0.522138,83892.0,83891.0,0.00017879]
[1744394489075,0.882938,83892.0,83891.0,9e-08]
[1744394489377,0.882938,83892.0,83884.0,0.3608]
[1744394489378,0.119268,83885.0,83884.0,0.3608]
[1744394489772,0.320268,83885.0,83884.0,0.3608]
[1744394490981,0.216108,83885.0,83884.0,0.3608]
[1744394491679,0.318908,83885.0,83884.0,0.3608]
[1744394492579,0.318908,83885.0,83876.0,0.0956]
[1744394492580,0.1192794,83877.0,83876.0,0.0956]
[1744394493381,0.3218794,83877.0,83876.0,0.0956]
[1744394494181,0.3218794,83877.0,83862.0,0.05965]
[1744394494182,0.2026,83877.0,83856.0,0.3608]
[1744394494378,0.1192836,83874.0,83870.0,0.0953]
[1744394494884,0.3199836,83874.0,83870.0,0.0953]
[1744394498586,0.1192836,83874.0,83870.0,0.0953]
[1744394498789,0.1789243,83877.0,83876.0,0.119278]
[1744394499391,0.23756422,83879.0,83878.0,0.119278]
[1744394499583,0.17792532,83879.0,83878.0,0.119278]
[1744394499787,0.29720182,83879.0,83878.0,0.119278]
[1744394499979,0.29724182,83879.0,83878.0,0.119278]
[1744394500379,0.17792532,83879.0,83878.0,0.784578]
[1744394500689,0.1788925,83894.0,83880.0,0.0596375]
[1744394500890,0.1788925,83894.0,83893.0,0.8408555]
[1744394500891,0.1192552,83894.0,83893.0,0.8408555]
[1744394501191,0.1192552,83894.0,83893.0,0.7216]
[1744394501485,0.1192424,83904.0,83903.0,0.1192415]
[1744394501689,0.1192381,83906.0,83905.0,0.0596194]
[1744394501887,0.119241,83904.0,83903.0,0.3608]
[1744394502078,0.119241,83904.0,83903.0,0.4800424]
[1744394502684,0.119241,83904.0,83903.0,0.3608]
[1744394503089,0.119241,83904.0,83903.0,0.4800424]
[1744394503790,0.0596174,83909.0,83906.0,0.1192353]
[1744394503985,0.1192374,83907.0,83906.0,0.1192353]
[1744394504188,0.00017879,83912.0,83911.0,0.119231]
[1744394504391,0.00017879,83912.0,83911.0,0.480031]
[1744394504686,0.00021879,83912.0,83911.0,0.480031]
[1744394504889,0.00021879,83912.0,83911.0,0.730031]
[1744394505078,0.00021879,83912.0,83911.0,1.145331]
[1744394505386,0.005,83914.0,83913.0,0.1192282]
[1744394505884,0.28395307,83935.0,83928.0,0.1192069]
[1744394506077,5.401e-05,83930.0,83928.0,0.8408069]
[1744394506279,0.0596007,83932.0,83928.0,0.8408069]
[1744394506478,0.24849893,83929.0,83928.0,0.8408069]
[1744394506684,0.36766443,83929.0,83928.0,0.8408069]
[1744394507086,0.1192055,83929.0,83928.0,0.8408069]
[1744394507479,0.1192455,83929.0,83928.0,0.8408069]
[1744394507687,4e-05,83929.0,83928.0,0.8408069]
[1744394508291,0.0595978,83936.0,83935.0,0.1191969]
[1744394508483,0.0595978,83936.0,83935.0,0.4799969]
[1744394508886,0.1647978,83936.0,83935.0,0.3608]
[1744394509983,0.1647978,83936.0,83935.0,0.4799969]
[1744394510388,0.1647978,83936.0,83935.0,0.47930719]
[1744394510593,0.1647978,83936.0,83932.0,0.0596004]
[1744394510594,0.1192055,83929.0,83928.0,0.5396003]
[1744394510890,0.1192055,83929.0,83928.0,0.3608]
[1744394511291,0.1192055,83929.0,83928.0,0.4800069]
[1744394512896,0.1192055,83929.0,83928.0,0.3608]
[1744394512897,0.2225055,83929.0,83928.0,0.3608]
[1744394513090,0.3267055,83929.0,83928.0,0.3608]
[1744394513297,0.3267055,83929.0,83928.0,0.4800069]
[1744394513991,0.1192055,83929.0,83928.0,0.4800069]
[1744394514800,0.1192455,83929.0,83928.0,0.4800069]
[1744394515090,4e-05,83929.0,83928.0,0.4800069]
[1744394515295,0.1191919,83939.0,83936.0,0.1191955]
[1744394515492,0.005,83940.0,83936.0,0.4799955]
[1744394515493,0.00505401,83940.0,83936.0,0.4799955]
[1744394515884,0.11937289,83937.0,83936.0,0.3608]
[1744394516084,0.11937289,83937.0,83936.0,0.4799955]
[1744394516283,0.00017879,83937.0,83936.0,0.4799955]
[1744394517100,0.11941289,83937.0,83936.0,0.4799955]
[1744394517399,0.00021879,83937.0,83936.0,0.4799955]
[1744394517794,0.00017879,83937.0,83936.0,0.4799955]
[1744394518099,0.005,83940.0,83939.0,0.1191913]
[1744394518396,0.005,83940.0,83939.0,0.4799913]
[1744394519395,0.005,83940.0,83939.0,0.8952913]
[1744394519702,0.00504,83940.0,83939.0,1.0003913]
[1744394519999,0.00504,83940.0,83939.0,1.00925427]
[1744394520390,0.0595792,83965.0,83964.0,0.1191544]
[1744394520587,0.34845893,84000.0,83964.0,0.7761]
[1744394520787,0.34845893,84000.0,83991.0,0.1191175]
[1744394520987,0.34845893,84000.0,83991.0,0.8407175]
[1744394521197,0.1241161,83992.0,83991.0,0.7216]
[1744394521693,0.1241561,83992.0,83991.0,0.7216]
[1744394521893,0.119126,83985.0,83984.0,0.3608]
[1744394522291,0.1191274,83984.0,83983.0,0.00017868]
[1744394522505,0.0595813,83960.0,83957.0,0.0595826]
[1744394522795,0.1191657,83957.0,83956.0,0.3608]
[1744394523299,0.1191657,83957.0,83951.0,0.00476466]
[1744394523300,0.0595856,83954.0,83950.0,0.3608]
[1744394523487,0.1191742,83951.0,83950.0,0.3608]
[1744394523694,0.3853577,83953.0,83952.0,0.1191728]
[1744394523996,0.3853577,83953.0,83948.0,0.00017868]
[1744394523997,0.1191771,83949.0,83948.0,0.00017868]
[1744394525890,0.1192171,83949.0,83948.0,0.11935718]
[1744394526593,0.1192171,83949.0,83948.0,0.00017868]
[1744394526793,0.1192171,83949.0,83948.0,0.11935718]
[1744394526990,0.1192171,83949.0,83948.0,0.00017868]
[1744394527201,0.1192171,83949.0,83948.0,0.11935718]
[1744394527397,0.1192171,83949.0,83948.0,0.00017868]
[1744394527599,0.2237171,83949.0,83948.0,0.00017868]
[1744394528294,0.10454,83949.0,83948.0,0.11935718]
[1744394528895,0.059578,83964.0,83958.0,0.1191643]
[1744394529101,0.00017868,83965.0,83964.0,0.1191558]
[1744394529102,0.0002771,83965.0,83964.0,0.1191558]
[1744394529295,0.00017868,83965.0,83964.0,0.2190558]
[1744394529491,0.00021868,83965.0,83964.0,0.2190558]
[1744394529896,0.11937308,83965.0,83964.0,0.2190558]
[1744394530098,0.22177308,83965.0,83964.0,0.1191558]
[1744394530297,0.00021868,83965.0,83964.0,0.1191558]
[1744394530492,0.11937308,83965.0,83964.0,0.2243558]
[1744394530696,0.00021868,83965.0,83964.0,0.2243558]
[1744394531297,0.00017868,83965.0,83964.0,0.2243558]
[1744394531498,7.291e-05,83986.0,83985.0,0.059563]
[1744394531699,7.291e-05,83986.0,83985.0,0.420363]
[1744394531900,0.005,83992.0,83991.0,0.1191175]
[1744394532099,0.005,83992.0,83991.0,0.4799175]
[1744394532899,0.1241161,83992.0,83991.0,0.4799175]
[1744394533099,0.1241561,83992.0,83991.0,0.4799175]
[1744394533401,0.00504,83992.0,83991.0,0.4799175]
[1744394534196,0.00504,83992.0,83991.0,0.8952175]
[1744394534402,0.1602476,84007.0,83999.0,0.1191061]
[1744394534403,0.0595475,84007.0,83999.0,0.1191061]
[1744394534600,0.059551,84002.0,83999.0,0.4799061]
[1744394534796,0.21928338,84000.0,83999.0,0.3608]
[1744394534996,0.21932338,84000.0,83999.0,0.3608]
[1744394535197,0.1191161,83992.0,83991.0,0.7761]
[1744394535397,0.1191161,83992.0,83991.0,0.8952175]
[1744394535597,0.1191142,83994.0,83993.0,0.1191146]
[1744394536198,0.2198142,83994.0,83993.0,0.1191146]
[1744394536598,0.3170142,83994.0,83993.0,0.1191146]
[1744394537807,0.1191274,83984.0,83982.0,0.36995118]
[1744394537999,0.4799274,83984.0,83983.0,0.11930748]
[1744394538194,0.4799274,83984.0,83983.0,0.00017868]
[1744394538910,0.6108,83984.0,83966.0,0.1]
[1744394539203,0.1191359,83978.0,83966.0,0.0595764]
[1744394539513,0.1191359,83978.0,83959.0,0.0976]
[1744394539705,0.7299359,83978.0,83959.0,0.0976]
[1744394539909,0.7299359,83978.0,83962.0,0.1191581]
[1744394540105,0.1191359,83978.0,83969.0,0.05975298]
[1744394540306,0.1191759,83978.0,83977.0,0.12390048]
[1744394540504,4e-05,83978.0,83977.0,0.12390048]
[1744394540905,0.1191174,83992.0,83991.0,0.0595581]
[1744394541108,0.1556568,83994.0,83993.0,0.1191146]
[1744394541413,0.0595568,83994.0,83993.0,0.1191146]
[1744394541599,0.0595968,83994.0,83993.0,0.1191146]
[1744394541798,0.0595968,83994.0,83993.0,0.2167146]
[1744394543219,0.0595968,83994.0,83993.0,0.0976]
[1744394543408,0.119126,83986.0,83985.0,0.2239252]
[1744394543813,0.119126,83986.0,83967.0,0.3608]
[1744394543814,0.1191359,83978.0,83969.0,0.00017868]
[1744394544116,0.1191359,83978.0,83977.0,0.53919908]
[1744394545018,0.1191359,83978.0,83977.0,0.12389908]
[1744394545205,0.1191359,83978.0,83977.0,0.22689908]
[1744394545510,0.1191759,83978.0,83977.0,0.22689908]
[1744394546417,4e-05,83978.0,83977.0,0.22689908]
[1744394546614,0.1191759,83978.0,83977.0,0.22689908]
[1744394546803,0.1191359,83978.0,83977.0,0.22689908]
[1744394547004,0.1191759,83978.0,83977.0,0.22689908]
[1744394547218,0.1191759,83978.0,83977.0,0.00476318]
[1744394547807,0.1191759,83978.0,83977.0,0.12390048]
[1744394548414,0.1191359,83978.0,83977.0,0.12390048]
[1744394548613,0.1191359,83978.0,83977.0,0.10716318]
[1744394548614,0.1191759,83978.0,83977.0,0.10716318]
[1744394548819,0.1191759,83978.0,83977.0,0.00476318]
[1744394549811,0.2193359,83978.0,83977.0,0.00476318]
[1744394550318,0.2192959,83978.0,83977.0,0.00476318]
[1744394550518,0.2193359,83978.0,83977.0,0.00476318]
[1744394551309,0.1191759,83978.0,83977.0,0.00476318]
[1744394551720,0.1191759,83978.0,83977.0,0.12390048]
[1744394552523,4e-05,83978.0,83977.0,0.32540048]
[1744394552915,0.1786705,83995.0,83994.0,0.1191118]
[1744394553122,0.2382271,83995.0,83994.0,0.4799118]
[1744394553427,0.4362271,83995.0,83994.0,0.4799118]
[1744394553617,0.19804,83995.0,83994.0,0.4799118]
[1744394553818,0.11911,83997.0,83996.0,0.1191104]
[1744394554316,0.11911,83997.0,83996.0,0.3206104]
[1744394554711,0.1191231,83987.0,83983.0,0.1191288]
[1744394554916,0.4799231,83987.0,83978.0,0.1191346]
[1744394555120,0.4799231,83987.0,83977.0,0.00476318]
[1744394555422,0.1191359,83978.0,83977.0,0.00476318]
[1744394555614,0.4799359,83978.0,83977.0,0.00476318]
[1744394555819,0.6844359,83978.0,83977.0,0.00476318]
[1744394556122,0.3236359,83978.0,83977.0,0.00476318]
[1744394556319,0.3236759,83978.0,83977.0,0.00476318]
[1744394557417,0.3236359,83978.0,83977.0,0.00476318]
[1744394557611,0.3236759,83978.0,83977.0,0.00476318]
[1744394557918,0.3236359,83978.0,83977.0,0.00476318]
[1744394558118,0.3236759,83978.0,83977.0,0.00476318]
[1744394559024,0.3236759,83978.0,83977.0,0.12390048]
[1744394559218,0.3236759,83978.0,83977.0,0.00476318]
[1744394559428,0.3236359,83978.0,83977.0,0.00476318]
[1744394559619,0.3236759,83978.0,83977.0,0.00476318]
[1744394560617,0.3236759,83978.0,83977.0,0.12390048]
[1744394560813,0.3236359,83978.0,83977.0,0.00476318]
[1744394561013,0.3236759,83978.0,83977.0,0.10176318]
[1744394561323,4e-05,83978.0,83977.0,0.63620048]
[1744394561519,4e-05,83978.0,83977.0,0.84500048]
[1744394561822,0.1191282,83984.0,83983.0,0.1191288]
[1744394562030,0.0595616,83987.0,83977.0,0.78543108]
[1744394562326,0.1786946,83983.0,83982.0,0.1786953]
[1744394562622,0.1786946,83983.0,83982.0,0.1652651]
[1744394563218,0.1786946,83983.0,83982.0,0.2622651]
[1744394564226,0.1786881,83987.0,83986.0,0.1191246]
[1744394564425,0.0595622,83987.0,83986.0,0.1191246]
[1744394564622,0.0595622,83987.0,83986.0,0.3279246]
[1744394565132,0.0596022,83987.0,83986.0,0.3279246]
[1744394565328,0.0595622,83987.0,83986.0,0.3279246]
[1744394565524,0.0596022,83987.0,83986.0,0.3279246]
[1744394566126,4e-05,83987.0,83986.0,0.3279246]
[1744394566329,0.29648181,83993.0,83992.0,0.1191161]
[1744394566630,0.0595609,83988.0,83987.0,0.2382425]
[1744394566936,0.0595609,83988.0,83987.0,0.3350425]
[1744394567129,0.0596009,83988.0,83987.0,0.3350425]
[1744394567630,0.0596009,83988.0,83987.0,0.1563608]
[1744394568227,0.0596009,83988.0,83987.0,0.0595608]
[1744394568426,0.0596009,83988.0,83987.0,0.1563608]
[1744394568838,0.0595609,83988.0,83987.0,0.1563608]
[1744394569025,0.1567009,83988.0,83987.0,0.1563608]
[1744394569425,0.0596009,83988.0,83987.0,0.1563608]
[1744394569628,4e-05,83988.0,83987.0,0.1563608]
[1744394569828,0.09719842,83996.0,83987.0,0.1563608]
[1744394569829,0.1191147,83993.0,83992.0,0.1191161]
[1744394570029,0.1191147,83993.0,83992.0,0.2249161]
[1744394570535,0.1191547,83993.0,83992.0,0.2249161]
[1744394570933,0.1191547,83993.0,83992.0,0.5857161]
[1744394571542,4e-05,83993.0,83992.0,0.6452736]
[1744394571841,0.0595538,83998.0,83997.0,0.1786598]
[1744394572029,0.10017868,84000.0,83999.0,0.1191061]
[1744394572236,0.10017868,84000.0,83999.0,0.4799061]
[1744394572639,0.10017868,84000.0,83999.0,0.5857061]
[1744394573137,0.10021868,84000.0,83999.0,0.5857061]
[1744394573334,0.10017868,84000.0,83999.0,1.0010061]
[1744394573537,0.10021868,84000.0,83999.0,1.0010061]
[1744394573928,0.10017868,84000.0,83999.0,1.0010061]
[1744394574236,0.10021868,84000.0,83999.0,1.0010061]
[1744394575027,0.21932338,84000.0,83999.0,0.6402061]
[1744394575331,0.21932338,84000.0,83999.0,0.5211]
[1744394575532,0.10021868,84000.0,83999.0,0.6402061]
[1744394575738,0.10021868,84000.0,83999.0,1.0010061]
[1744394576330,0.10017868,84000.0,83999.0,1.0010061]
[1744394576735,0.10021868,84000.0,83999.0,1.0010061]
[1744394576940,0.10017868,84000.0,83999.0,1.0010061]
[1744394577235,0.0645401,84018.0,84015.0,0.1786216]
[1744394577440,0.00507291,84018.0,84017.0,0.1190806]
[1744394577631,0.1240792,84018.0,84017.0,0.1190806]
[1744394577828,0.005,84018.0,84017.0,0.2239806]
[1744394578140,0.29702543,84026.0,84025.0,0.1190693]
[1744394578338,0.297204,84026.0,84025.0,0.1190693]
[1744394578728,0.1781361,84026.0,84025.0,0.1190693]
[1744394578930,0.297244,84026.0,84025.0,0.1190693]
[1744394579139,0.1781361,84026.0,84025.0,0.1190693]
[1744394579334,0.1781761,84026.0,84025.0,0.1190693]
[1744394579641,0.1781761,84026.0,84025.0,0.2167693]
[1744394580039,0.297244,84026.0,84025.0,0.2167693]
[1744394581436,0.1781761,84026.0,84025.0,0.2167693]
[1744394581846,0.297244,84026.0,84025.0,0.2167693]
[1744394582141,0.1781761,84026.0,84025.0,0.2167693]
[1744394582342,0.1781361,84026.0,84025.0,0.5775693]
[1744394582538,0.1781761,84026.0,84025.0,0.5775693]
[1744394582839,0.11141861,84032.0,84031.0,0.1190608]
[1744394583141,0.11141861,84032.0,84031.0,0.4798608]
[1744394583338,0.23047801,84032.0,84031.0,0.4798608]
[1744394583843,0.11141861,84032.0,84031.0,0.4798608]
[1744394584245,0.23047801,84032.0,84031.0,0.4798608]
[1744394584543,0.11141861,84032.0,84031.0,0.4798608]
[1744394585642,0.11145861,84032.0,84031.0,0.4798608]
[1744394585844,0.11141861,84032.0,84031.0,0.8951608]
[1744394586047,0.00023258,84040.0,84039.0,0.1190494]
[1744394586243,0.00017857,84040.0,84039.0,0.8951494]
[1744394586543,0.00021857,84040.0,84039.0,0.8951494]
[1744394586939,0.00021857,84040.0,84039.0,1.0998494]
[1744394587936,0.00017857,84040.0,84039.0,1.0998494]
[1744394588149,0.00021857,84040.0,84039.0,1.10859582]
[1744394588642,0.19701857,84040.0,84039.0,1.10859582]
[1744394589139,0.00021857,84040.0,84039.0,1.10859582]
[1744394589342,5.401e-05,84049.0,84048.0,0.1190367]
[1744394589649,0.11902,84060.0,84058.0,0.1190225]
[1744394589845,0.0595086,84062.0,84057.0,0.2162225]
[1744394589846,0.1190225,84058.0,84057.0,0.2162225]
[1744394590046,0.0595119,84057.0,84049.0,0.1190349]
[1744394590236,0.1190353,84049.0,84048.0,0.3608]
[1744394590436,0.1190466,84043.0,84042.0,0.1785626]
[1744394590744,0.1190721,84023.0,84022.0,0.3608]
[1744394590945,0.0595328,84028.0,84025.0,0.0595339]
[1744394591144,0.3608,84036.0,84025.0,0.0595339]
[1744394591145,0.2152664,84027.0,84026.0,0.1190664]
[1744394591344,0.2152664,84027.0,84022.0,0.3608]
[1744394591345,0.1045,84035.0,84034.0,0.1190565]
[1744394591648,0.1190579,84033.0,84032.0,0.0595295]
[1744394591842,0.0595293,84033.0,84022.0,0.3608]
[1744394592043,0.1785983,84031.0,84030.0,0.1190594]
[1744394592234,0.0595318,84031.0,84030.0,0.1190594]
[1744394592441,0.1190622,84030.0,84029.0,0.00476023]
[1744394592844,0.3207622,84030.0,84029.0,0.12382383]
[1744394593540,0.3207622,84030.0,84029.0,0.22582383]
[1744394594047,0.3208022,84030.0,84029.0,0.22582383]
[1744394594444,0.3208022,84030.0,84029.0,0.12382383]
[1744394594751,0.3208022,84030.0,84021.0,0.3608]
[1744394594752,0.81254,84030.0,83998.0,0.4153]
[1744394595046,0.840699,84004.0,83997.0,0.20847145]
[1744394595247,0.940739,84004.0,83997.0,0.20847145]
[1744394595749,0.940739,84004.0,83998.0,0.1191071]
[1744394595935,1.143439,84004.0,83998.0,0.1191071]
[1744394596139,1.143439,84004.0,83997.0,0.20847145]
[1744394596542,1.143439,84004.0,83997.0,0.32757985]
[1744394596746,1.143439,84004.0,83997.0,0.20847145]
[1744394597050,0.1191075,83998.0,83997.0,0.20847145]
[1744394597744,0.1191231,83987.0,83986.0,0.1191236]
[1744394597941,0.1191317,83981.0,83978.0,0.2577677]
[1744394598142,0.1191317,83981.0,83978.0,0.1597677]
[1744394598342,0.0595645,83983.0,83982.0,0.1191302]
[1744394598549,0.1551645,83983.0,83982.0,0.1191302]
[1744394598942,0.0989,83986.0,83985.0,0.119126]
[1744394599146,0.46076,83987.0,83986.0,0.1191246]
[1744394599349,0.09996,83987.0,83986.0,0.1191246]
[1744394599648,0.2190831,83987.0,83986.0,0.1191246]
[1744394600939,0.09996,83987.0,83986.0,0.1191246]
[1744394601138,0.09996,83987.0,83986.0,0.4799246]
[1744394601343,0.00017857,83991.0,83990.0,0.1191189]
[1744394602036,0.00021857,83991.0,83990.0,0.1191189]
[1744394602244,0.00021857,83991.0,83990.0,0.2166189]
[1744394602447,0.11914741,84008.0,84007.0,0.1190948]
[1744394602640,5.401e-05,84008.0,84007.0,0.1190948]
[1744394602836,5.401e-05,84008.0,84007.0,0.2146948]
[1744394604464,5.401e-05,84008.0,84007.0,0.6299948]
[1744394604751,0.00017857,84016.0,84015.0,0.1190834]
[1744394606146,0.00021857,84016.0,84015.0,0.1190834]
[1744394606351,0.11930057,84016.0,84015.0,0.1190834]
[1744394606553,0.11930057,84016.0,84009.0,0.0595456]
[1744394606554,0.1190934,84008.0,83998.0,0.4203536]
[1744394606752,0.0595494,84005.0,84000.0,0.0595523]
[1744394606949,0.1191047,84001.0,84000.0,0.0595523]
[1744394607153,0.2044,84004.0,84003.0,0.1191005]
[1744394607342,0.1191047,84000.0,83998.0,0.3608]
[1744394607650,0.1191047,84000.0,83993.0,0.0595567]
[1744394607651,0.4799047,84000.0,83999.0,0.11928467]
[1744394608051,0.3608,84000.0,83999.0,0.11928467]
[1744394608349,0.1017,84004.0,84003.0,0.1191005]
[1744394608750,0.1017,84004.0,83999.0,0.36097857]
[1744394608751,0.1027,84011.0,83999.0,0.36097857]
[1744394608942,0.3608,84014.0,84011.0,0.1190891]
[1744394609141,0.0942,84015.0,84014.0,0.1190849]
[1744394609347,0.2132834,84015.0,84014.0,0.1190849]